[Event "*** Titled Tuesday 3|2 Blitz"]
[Site "Chess.com"]
[Date "2015.07.07"]
[Round "6"]
[White "PauloCesarCosta"]
[Black "Carolina-moon"]
[Result "1-0"]
[WhiteElo "2018"]
[BlackElo "1988"]
[TimeControl "180+2"]
[EndTime "12:15:39 PDT"]
[Termination "PauloCesarCosta won by resignation"]

1. Nf3 {[%clk 0:03:00.6]} 1... f5 {[%clk 0:02:59.7]} 2. d3 {[%clk 0:02:56.1]}
2... d5 {[%clk 0:02:57.3]} 3. g3 {[%clk 0:02:56.1]} 3... Nf6 {[%clk 0:02:54.2]}
4. Bg2 {[%clk 0:02:57.2]} 4... Nc6 {[%clk 0:02:48]} 5. O-O {[%clk 0:02:57.9]}
5... e5 {[%clk 0:02:48.2]} 6. Bg5 {[%clk 0:02:58.5]} 6... Be7 {[%clk 0:02:45.3]}
7. Nbd2 {[%clk 0:02:57.1]} 7... O-O {[%clk 0:02:44.6]} 8. c3 {[%clk 0:02:49.2]}
8... e4 {[%clk 0:02:40.6]} 9. Ne1 {[%clk 0:02:42.4]} 9... h6 {[%clk 0:02:35.6]}
10. Bxf6 {[%clk 0:02:42.5]} 10... Bxf6 {[%clk 0:02:36]} 11. Nc2 {[%clk 0:02:37]}
11... Be6 {[%clk 0:02:31.7]} 12. d4 {[%clk 0:02:30.2]} 12... Bf7 {[%clk
0:02:27.8]} 13. e3 {[%clk 0:02:31.2]} 13... Qe8 {[%clk 0:02:26.8]} 14. Na3
{[%clk 0:02:29.7]} 14... Ne7 {[%clk 0:02:24.4]} 15. Re1 {[%clk 0:02:26.2]} 15...
c6 {[%clk 0:02:22.4]} 16. c4 {[%clk 0:02:24.3]} 16... Bh5 {[%clk 0:02:21.1]} 17.
Qb3 {[%clk 0:02:23.1]} 17... Rb8 {[%clk 0:02:20]} 18. cxd5 {[%clk 0:02:21.5]}
18... Nxd5 {[%clk 0:02:17.4]} 19. Nab1 {[%clk 0:02:13]} 19... Kh8 {[%clk
0:02:15.1]} 20. Nc3 {[%clk 0:02:13.7]} 20... Bf7 {[%clk 0:02:13.5]} 21. Nxd5
{[%clk 0:02:10.5]} 21... Bxd5 {[%clk 0:02:13.5]} 22. Qc2 {[%clk 0:02:09.7]}
22... Qh5 {[%clk 0:02:08.6]} 23. Qd1 {[%clk 0:02:07.9]} 23... Qf7 {[%clk
0:02:08.1]} 24. b3 {[%clk 0:02:07.6]} 24... b5 {[%clk 0:02:07.1]} 25. Rc1 {[%clk
0:02:07.8]} 25... a6 {[%clk 0:02:06.4]} 26. Nb1 {[%clk 0:02:07.9]} 26... Rbc8
{[%clk 0:02:05.5]} 27. Nc3 {[%clk 0:02:08.8]} 27... Be7 {[%clk 0:01:57.2]} 28.
Nxd5 {[%clk 0:02:08.9]} 28... Qxd5 {[%clk 0:01:52.2]} 29. Re2 {[%clk 0:02:03.3]}
29... Rfd8 {[%clk 0:01:52.4]} 30. Qe1 {[%clk 0:01:38.3]} 30... c5 {[%clk
0:01:44.8]} 31. dxc5 {[%clk 0:01:37.6]} 31... Rxc5 {[%clk 0:01:39.8]} 32. Rec2
{[%clk 0:01:28.8]} 32... Rxc2 {[%clk 0:01:30.3]} 33. Rxc2 {[%clk 0:01:29.4]}
33... Qd3 {[%clk 0:01:22.5]} 34. Rc1 {[%clk 0:01:11.8]} 34... Ba3 {[%clk
0:01:05.1]} 35. Ra1 {[%clk 0:00:59.1]} 35... Bb2 {[%clk 0:00:48.2]} 36. Rb1
{[%clk 0:00:57.2]} 36... Qc2 {[%clk 0:00:41.5]} 37. Bh3 {[%clk 0:00:45.9]} 37...
Bc1 {[%clk 0:00:41.1]} 38. Rxc1 {[%clk 0:00:44.5]} 38... Qxa2 {[%clk 0:00:42.1]}
39. Bxf5 {[%clk 0:00:37.4]} 39... Qxb3 {[%clk 0:00:43.2]} 40. Bxe4 {[%clk
0:00:37.9]} 40... Qb2 {[%clk 0:00:42.7]} 41. Rd1 {[%clk 0:00:33.9]} 41... Rc8
{[%clk 0:00:42.3]} 42. Qd2 {[%clk 0:00:30.9]} 42... Qxd2 {[%clk 0:00:39.4]} 43.
Rxd2 {[%clk 0:00:32]} 43... b4 {[%clk 0:00:35.4]} 44. Ra2 {[%clk 0:00:27.5]}
44... b3 {[%clk 0:00:30]} 45. Rxa6 {[%clk 0:00:27.5]} 45... b2 {[%clk
0:00:24.3]} 46. Rb6 {[%clk 0:00:27.9]} 46... Rc1+ {[%clk 0:00:17.6]} 47. Kg2
{[%clk 0:00:28.7]} 1-0

[Event "*** Titled Tuesday 3|2 Blitz"]
[Site "Chess.com"]
[Date "2015.07.07"]
[Round "6"]
[White "goldaxe"]
[Black "alexsuper1987"]
[Result "0-1"]
[WhiteElo "2143"]
[BlackElo "2057"]
[TimeControl "180+2"]
[EndTime "12:15:44 PDT"]
[Termination "alexsuper1987 won by checkmate"]

1. e4 {[%clk 0:03:01.9]} 1... Nc6 {[%clk 0:02:59.6]} 2. Nf3 {[%clk 0:03:01.9]}
2... f5 {[%clk 0:03:00.7]} 3. exf5 {[%clk 0:03:01.4]} 3... d5 {[%clk 0:03:01.8]}
4. d4 {[%clk 0:02:52.8]} 4... Bxf5 {[%clk 0:03:02.6]} 5. Bd3 {[%clk 0:02:53.4]}
5... Bg4 {[%clk 0:03:02.7]} 6. h3 {[%clk 0:02:52.4]} 6... Bxf3 {[%clk
0:03:02.8]} 7. Qxf3 {[%clk 0:02:52.7]} 7... Nf6 {[%clk 0:02:56.1]} 8. c3 {[%clk
0:02:52.8]} 8... e5 {[%clk 0:02:57.2]} 9. dxe5 {[%clk 0:02:44.4]} 9... Nxe5
{[%clk 0:02:59.1]} 10. Qe2 {[%clk 0:02:43.7]} 10... Qe7 {[%clk 0:02:36.4]} 11.
Bc2 {[%clk 0:02:36]} 11... Nc4 {[%clk 0:02:27.4]} 12. Qxe7+ {[%clk 0:02:32.7]}
12... Bxe7 {[%clk 0:02:29.3]} 13. Nd2 {[%clk 0:02:29]} 13... Nxd2 {[%clk
0:02:23.1]} 14. Bxd2 {[%clk 0:02:30.2]} 14... O-O {[%clk 0:02:24.2]} 15. O-O-O
{[%clk 0:02:16.1]} 15... Bc5 {[%clk 0:02:13.5]} 16. f3 {[%clk 0:02:15.5]} 16...
Bf2 {[%clk 0:02:06.8]} 17. Bf4 {[%clk 0:02:10.3]} 17... c6 {[%clk 0:02:05.1]}
18. Rhf1 {[%clk 0:02:03]} 18... Bc5 {[%clk 0:02:04.9]} 19. Rfe1 {[%clk
0:01:55.6]} 19... Rae8 {[%clk 0:02:01.9]} 20. Be5 {[%clk 0:01:48.9]} 20... Nd7
{[%clk 0:01:59.7]} 21. Bg3 {[%clk 0:01:47.2]} 21... Be3+ {[%clk 0:01:34.8]} 22.
Kb1 {[%clk 0:01:44.8]} 22... Nf6 {[%clk 0:01:35.8]} 23. Re2 {[%clk 0:01:25.1]}
23... Bc5 {[%clk 0:01:27]} 24. Rde1 {[%clk 0:01:23.1]} 24... Rxe2 {[%clk
0:01:27.8]} 25. Rxe2 {[%clk 0:01:19.4]} 25... Kf7 {[%clk 0:01:29]} 26. Kc1
{[%clk 0:01:17.4]} 26... Re8 {[%clk 0:01:27.4]} 27. Rxe8 {[%clk 0:01:16.3]}
27... Kxe8 {[%clk 0:01:29]} 28. Kd2 {[%clk 0:01:16.9]} 28... Ke7 {[%clk
0:01:29.7]} 29. Bh4 {[%clk 0:00:56.7]} 29... g6 {[%clk 0:01:27.2]} 30. g4 {[%clk
0:00:53.5]} 30... Ke6 {[%clk 0:01:27.5]} 31. Bg3 {[%clk 0:00:51.5]} 31... Bd6
{[%clk 0:01:27.8]} 32. Bxd6 {[%clk 0:00:45.8]} 32... Kxd6 {[%clk 0:01:29.7]} 33.
Ke3 {[%clk 0:00:47.6]} 33... c5 {[%clk 0:01:24.3]} 34. Kf4 {[%clk 0:00:47.9]}
34... Ke6 {[%clk 0:01:21.6]} 35. Kg5 {[%clk 0:00:47.9]} 35... b5 {[%clk
0:01:15.7]} 36. h4 {[%clk 0:00:45.6]} 36... b4 {[%clk 0:01:16.4]} 37. h5 {[%clk
0:00:44.9]} 37... gxh5 {[%clk 0:01:14.5]} 38. gxh5 {[%clk 0:00:46.8]} 38... a5
{[%clk 0:01:07.6]} 39. Kh6 {[%clk 0:00:40.7]} 39... Ke5 {[%clk 0:01:01.6]} 40.
Bxh7 {[%clk 0:00:37.1]} 40... Nxh7 {[%clk 0:00:32.2]} 41. Kxh7 {[%clk 0:00:39]}
41... Kf6 {[%clk 0:00:33.5]} 42. f4 {[%clk 0:00:20.9]} 42... Kf7 {[%clk
0:00:31]} 43. Kh6 {[%clk 0:00:22.3]} 43... d4 {[%clk 0:00:28.7]} 44. cxd4 {[%clk
0:00:23.3]} 44... cxd4 {[%clk 0:00:29.9]} 45. Kg5 {[%clk 0:00:24.6]} 45... d3
{[%clk 0:00:31.4]} 46. h6 {[%clk 0:00:26]} 46... d2 {[%clk 0:00:30.6]} 47. h7
{[%clk 0:00:27.2]} 47... Kg7 {[%clk 0:00:31.8]} 48. f5 {[%clk 0:00:27.4]} 48...
d1=Q {[%clk 0:00:30.6]} 49. f6+ {[%clk 0:00:29.3]} 49... Kxh7 {[%clk 0:00:31.9]}
50. f7 {[%clk 0:00:30.5]} 50... Kg7 {[%clk 0:00:33]} 51. f8=Q+ {[%clk
0:00:31.2]} 51... Kxf8 {[%clk 0:00:34.3]} 52. b3 {[%clk 0:00:32.6]} 52... Qf3
{[%clk 0:00:35]} 53. a4 {[%clk 0:00:32.7]} 53... bxa3 {[%clk 0:00:36.3]} 54. b4
{[%clk 0:00:33.7]} 54... a2 {[%clk 0:00:37.7]} 55. b5 {[%clk 0:00:35.5]} 55...
a1=Q {[%clk 0:00:38.4]} 56. b6 {[%clk 0:00:37.4]} 56... Qaf6# {[%clk 0:00:39.6]}
0-1

[Event "*** Titled Tuesday 3|2 Blitz"]
[Site "Chess.com"]
[Date "2015.07.07"]
[Round "6"]
[White "FancyPlaySyndrome"]
[Black "Imre91"]
[Result "1/2-1/2"]
[WhiteElo "2309"]
[BlackElo "2586"]
[TimeControl "180+2"]
[EndTime "12:15:45 PDT"]
[Termination "Game drawn by repetition"]

1. e4 {[%clk 0:03:01.9]} 1... g6 {[%clk 0:02:43.3]} 2. d4 {[%clk 0:02:59.7]}
2... Bg7 {[%clk 0:02:44.8]} 3. Nc3 {[%clk 0:03:01.4]} 3... d6 {[%clk 0:02:43.8]}
4. h4 {[%clk 0:03:01.2]} 4... Nf6 {[%clk 0:02:42.8]} 5. f3 {[%clk 0:02:57.3]}
5... h5 {[%clk 0:02:39.1]} 6. Be3 {[%clk 0:02:51.3]} 6... a6 {[%clk 0:02:40.1]}
7. Bc4 {[%clk 0:02:46.3]} 7... b5 {[%clk 0:02:40.5]} 8. Bb3 {[%clk 0:02:47.4]}
8... Nc6 {[%clk 0:02:41.1]} 9. Nh3 {[%clk 0:02:44.3]} 9... Bxh3 {[%clk
0:02:40.2]} 10. Rxh3 {[%clk 0:02:46]} 10... Na5 {[%clk 0:02:39.9]} 11. Qd2
{[%clk 0:02:41.4]} 11... Qd7 {[%clk 0:02:35.1]} 12. Rh1 {[%clk 0:02:35.2]} 12...
Nxb3 {[%clk 0:02:31]} 13. axb3 {[%clk 0:02:36.1]} 13... c6 {[%clk 0:02:32]} 14.
b4 {[%clk 0:02:34.6]} 14... O-O {[%clk 0:02:19.2]} 15. Nd1 {[%clk 0:02:24.8]}
15... Rfe8 {[%clk 0:02:12]} 16. Nf2 {[%clk 0:02:23.8]} 16... e5 {[%clk
0:02:12.8]} 17. dxe5 {[%clk 0:02:23.3]} 17... Rxe5 {[%clk 0:02:13]} 18. Bf4
{[%clk 0:02:20.3]} 18... Re6 {[%clk 0:02:13]} 19. Nd3 {[%clk 0:02:10.5]} 19...
Qe8 {[%clk 0:02:09.8]} 20. Kf2 {[%clk 0:02:02]} 20... Rxe4 {[%clk 0:02:09.9]}
21. Bxd6 {[%clk 0:01:59.4]} 21... Re6 {[%clk 0:02:07.1]} 22. Bc5 {[%clk
0:02:00.1]} 22... Nd5 {[%clk 0:02:08.6]} 23. Rhe1 {[%clk 0:01:57.9]} 23... Kh7
{[%clk 0:02:00.6]} 24. g3 {[%clk 0:01:53.4]} 24... Bh6 {[%clk 0:01:54.6]} 25.
Rxe6 {[%clk 0:01:53.7]} 25... Qxe6 {[%clk 0:01:56.5]} 26. Qe2 {[%clk 0:01:54.2]}
26... Qh3 {[%clk 0:01:53.9]} 27. Rg1 {[%clk 0:01:43.6]} 27... Bg7 {[%clk
0:01:44.4]} 28. Qf1 {[%clk 0:01:27.8]} 28... Qf5 {[%clk 0:01:43.4]} 29. Qe2
{[%clk 0:01:28.5]} 29... a5 {[%clk 0:01:41.8]} 30. Ra1 {[%clk 0:01:27.1]} 30...
a4 {[%clk 0:01:32.6]} 31. Kg2 {[%clk 0:01:27.9]} 31... Rd8 {[%clk 0:01:23.9]}
32. Re1 {[%clk 0:01:24.2]} 32... Rg8 {[%clk 0:01:22.4]} 33. Qe4 {[%clk
0:01:24.5]} 33... Qd7 {[%clk 0:01:21.4]} 34. Ne5 {[%clk 0:01:21]} 34... Qe6
{[%clk 0:01:18.4]} 35. Nd3 {[%clk 0:01:08.1]} 35... Qxe4 {[%clk 0:01:18.5]} 36.
Rxe4 {[%clk 0:01:10]} 36... Rd8 {[%clk 0:01:18.8]} 37. f4 {[%clk 0:01:05.7]}
37... Kg8 {[%clk 0:01:16.7]} 38. Kf3 {[%clk 0:01:02.8]} 38... Rc8 {[%clk
0:01:14.6]} 39. Ne5 {[%clk 0:01:02.2]} 39... f5 {[%clk 0:01:11.1]} 40. Re1
{[%clk 0:01:02.1]} 40... Bxe5 {[%clk 0:01:12.6]} 41. Rxe5 {[%clk 0:01:02.6]}
41... Kf7 {[%clk 0:01:14.1]} 42. Re1 {[%clk 0:00:55]} 42... Re8 {[%clk
0:01:08.9]} 43. Ra1 {[%clk 0:00:52.2]} 43... Re4 {[%clk 0:01:03.3]} 44. c3
{[%clk 0:00:53.5]} 44... Re8 {[%clk 0:01:03.2]} 45. Bd4 {[%clk 0:00:50.3]} 45...
Ra8 {[%clk 0:01:03.4]} 46. Ke2 {[%clk 0:00:49.1]} 46... Ke6 {[%clk 0:00:58.1]}
47. Kd3 {[%clk 0:00:46.3]} 47... Kd7 {[%clk 0:00:59.6]} 48. Kc2 {[%clk
0:00:43.7]} 48... Kd6 {[%clk 0:00:55.4]} 49. Re1 {[%clk 0:00:33.9]} 49... Kd7
{[%clk 0:00:54.5]} 50. Ra1 {[%clk 0:00:32.9]} 50... Nc7 {[%clk 0:00:52.8]} 51.
Be5 {[%clk 0:00:25.2]} 51... Nd5 {[%clk 0:00:53.2]} 52. Bd4 {[%clk 0:00:25.5]}
1/2-1/2

[Event "*** Titled Tuesday 3|2 Blitz"]
[Site "Chess.com"]
[Date "2015.07.07"]
[Round "6"]
[White "TheLancer"]
[Black "jcibarra"]
[Result "1-0"]
[WhiteElo "2297"]
[BlackElo "2522"]
[TimeControl "180+2"]
[EndTime "12:16:07 PDT"]
[Termination "TheLancer won by resignation"]

1. e4 {[%clk 0:03:01.9]} 1... c5 {[%clk 0:03:01.3]} 2. Nc3 {[%clk 0:03:01.9]}
2... e6 {[%clk 0:03:02.6]} 3. f4 {[%clk 0:03:00.9]} 3... a6 {[%clk 0:03:04]} 4.
a4 {[%clk 0:03:01.1]} 4... Nc6 {[%clk 0:03:04.9]} 5. Nf3 {[%clk 0:03:01.9]} 5...
d5 {[%clk 0:03:05.1]} 6. d3 {[%clk 0:02:57.3]} 6... g6 {[%clk 0:03:04.5]} 7. g3
{[%clk 0:02:55.6]} 7... Bg7 {[%clk 0:03:05.8]} 8. Bg2 {[%clk 0:02:56.9]} 8...
Nge7 {[%clk 0:03:05.8]} 9. O-O {[%clk 0:02:57.5]} 9... O-O {[%clk 0:03:07.1]}
10. h3 {[%clk 0:02:59.1]} 10... f5 {[%clk 0:03:05.7]} 11. exd5 {[%clk 0:02:38]}
11... exd5 {[%clk 0:03:07.6]} 12. Bd2 {[%clk 0:02:15.2]} 12... d4 {[%clk
0:03:08.7]} 13. Nb1 {[%clk 0:02:13.2]} 13... Nd5 {[%clk 0:03:10.2]} 14. Na3
{[%clk 0:02:07.1]} 14... Re8 {[%clk 0:03:09]} 15. Nc4 {[%clk 0:02:07.7]} 15...
Be6 {[%clk 0:02:59.4]} 16. Ng5 {[%clk 0:02:03]} 16... Ne3 {[%clk 0:02:56.7]} 17.
Nxe6 {[%clk 0:01:53.3]} 17... Rxe6 {[%clk 0:02:57.6]} 18. Bxe3 {[%clk
0:01:14.7]} 18... dxe3 {[%clk 0:02:59.5]} 19. Qf3 {[%clk 0:01:16.1]} 19... Nd4
{[%clk 0:02:48.9]} 20. Qxb7 {[%clk 0:01:11.1]} 20... Rb8 {[%clk 0:02:47.8]} 21.
Qd5 {[%clk 0:00:48.4]} 21... e2 {[%clk 0:02:48.8]} 22. Rfe1 {[%clk 0:00:28.8]}
22... Qe7 {[%clk 0:02:47.3]} 23. Rac1 {[%clk 0:00:22.4]} 23... Rd8 {[%clk
0:02:46.3]} 24. Qb7 {[%clk 0:00:20.6]} 24... Rd7 {[%clk 0:02:40.5]} 25. Qa8+
{[%clk 0:00:20]} 25... Rd8 {[%clk 0:02:40.6]} 26. Qb7 {[%clk 0:00:21.1]} 26...
Rd7 {[%clk 0:02:34.1]} 27. Qa8+ {[%clk 0:00:21.9]} 27... Bf8 {[%clk 0:02:35.5]}
28. Bd5 {[%clk 0:00:18.5]} 28... Kg7 {[%clk 0:02:30]} 29. Bxe6 {[%clk
0:00:19.5]} 29... Qxe6 {[%clk 0:02:31.9]} 30. c3 {[%clk 0:00:19.5]} 30... Nb3
{[%clk 0:02:30.5]} 31. Rc2 {[%clk 0:00:19.8]} 31... Rxd3 {[%clk 0:02:31.6]} 32.
Rcxe2 {[%clk 0:00:19.9]} 32... Qxc4 {[%clk 0:02:30.4]} 33. Re7+ {[%clk 0:00:14]}
33... Kg8 {[%clk 0:02:30.6]} 34. Re8 {[%clk 0:00:11.4]} 34... Qf7 {[%clk
0:01:26.2]} 35. Rxf8+ {[%clk 0:00:11.9]} 35... Qxf8 {[%clk 0:01:26.5]} 36. Re8
{[%clk 0:00:13.6]} 36... Qxe8 {[%clk 0:01:16.6]} 37. Qxe8+ {[%clk 0:00:15.5]}
37... Kg7 {[%clk 0:01:18]} 38. Qe7+ {[%clk 0:00:16.2]} 38... Kh6 {[%clk
0:01:18.3]} 39. Qf8+ {[%clk 0:00:17.5]} 39... Kh5 {[%clk 0:01:19.3]} 40. Qf7
{[%clk 0:00:17.1]} 40... h6 {[%clk 0:01:07.9]} 41. Qxb3 {[%clk 0:00:16.8]} 41...
Rxg3+ {[%clk 0:01:09.2]} 42. Kh2 {[%clk 0:00:18.5]} 42... Kh4 {[%clk 0:01:10]}
43. Qe6 {[%clk 0:00:17.7]} 43... Rxh3+ {[%clk 0:01:11.2]} 44. Kg2 {[%clk
0:00:19.4]} 44... Rg3+ {[%clk 0:01:12.4]} 45. Kf2 {[%clk 0:00:21.1]} 45... Rg4
{[%clk 0:01:12.1]} 46. Qxa6 {[%clk 0:00:19.1]} 46... Rxf4+ {[%clk 0:01:13.1]}
47. Ke3 {[%clk 0:00:20.8]} 47... Rg4 {[%clk 0:01:03.5]} 48. a5 {[%clk
0:00:17.8]} 48... Kg3 {[%clk 0:01:02.8]} 49. Qd6+ {[%clk 0:00:17.9]} 49... f4+
{[%clk 0:01:04.3]} 50. Ke4 {[%clk 0:00:17.6]} 50... Kg2 {[%clk 0:01:04]} 51.
Qd2+ {[%clk 0:00:15.5]} 51... Kh3 {[%clk 0:01:05.2]} 52. Qd3+ {[%clk 0:00:15.2]}
52... Rg3 {[%clk 0:01:06.4]} 53. Qf1+ {[%clk 0:00:16.3]} 53... Kh2 {[%clk
0:01:05.1]} 54. Qxf4 {[%clk 0:00:16.8]} 54... g5 {[%clk 0:01:06.7]} 55. Qf2+
{[%clk 0:00:16.4]} 55... Kh3 {[%clk 0:01:06.7]} 56. Qf1+ {[%clk 0:00:16.8]}
56... Kh2 {[%clk 0:01:08.1]} 57. a6 {[%clk 0:00:17.4]} 57... Rg4+ {[%clk
0:01:02.3]} 58. Ke3 {[%clk 0:00:17.9]} 58... Ra4 {[%clk 0:01:00]} 59. Qf2+
{[%clk 0:00:17.4]} 59... Kh3 {[%clk 0:01:01]} 60. Qf3+ {[%clk 0:00:18.7]} 60...
Kh4 {[%clk 0:01:02.3]} 61. Qf2+ {[%clk 0:00:17.8]} 61... Kh3 {[%clk 0:01:03.5]}
62. Qf6 {[%clk 0:00:18.8]} 62... g4 {[%clk 0:01:00.1]} 63. Qxh6+ {[%clk
0:00:19.6]} 63... Kg2 {[%clk 0:01:02]} 64. Qc6+ {[%clk 0:00:20]} 1-0

[Event "*** Titled Tuesday 3|2 Blitz"]
[Site "Chess.com"]
[Date "2015.07.07"]
[Round "6"]
[White "wonderfultime"]
[Black "Dlugy"]
[Result "1/2-1/2"]
[WhiteElo "2570"]
[BlackElo "2551"]
[TimeControl "180+2"]
[EndTime "12:16:51 PDT"]
[Termination "Game drawn by repetition"]

1. d4 {[%clk 0:03:01.9]} 1... Nf6 {[%clk 0:03:00.2]} 2. c4 {[%clk 0:03:02.9]}
2... g6 {[%clk 0:03:01.8]} 3. Nc3 {[%clk 0:03:04]} 3... Bg7 {[%clk 0:03:03.5]}
4. e4 {[%clk 0:03:05.1]} 4... d6 {[%clk 0:03:05.2]} 5. f3 {[%clk 0:03:06.6]}
5... O-O {[%clk 0:03:06.8]} 6. Be3 {[%clk 0:03:06.8]} 6... c5 {[%clk 0:03:08]}
7. Nge2 {[%clk 0:03:07.4]} 7... Qa5 {[%clk 0:03:06]} 8. Nc1 {[%clk 0:03:08]}
8... cxd4 {[%clk 0:03:06.9]} 9. Nb3 {[%clk 0:03:07.2]} 9... Qh5 {[%clk
0:03:08.4]} 10. Nxd4 {[%clk 0:03:05.6]} 10... Nc6 {[%clk 0:03:09.4]} 11. Qd2
{[%clk 0:03:06.8]} 11... Nxd4 {[%clk 0:02:59.6]} 12. Bxd4 {[%clk 0:03:06.3]}
12... Be6 {[%clk 0:03:00.5]} 13. Be2 {[%clk 0:01:48.3]} 13... Rfc8 {[%clk
0:02:49]} 14. b3 {[%clk 0:01:46.9]} 14... Qh4+ {[%clk 0:02:35]} 15. Bf2 {[%clk
0:01:44.4]} 15... Qh6 {[%clk 0:02:28.8]} 16. Be3 {[%clk 0:01:45.7]} 16... Qh4+
{[%clk 0:02:28.9]} 17. Bf2 {[%clk 0:01:47.2]} 17... Qh5 {[%clk 0:02:29.8]} 18.
O-O {[%clk 0:01:41.8]} 18... Qa5 {[%clk 0:02:15.8]} 19. Rac1 {[%clk 0:01:39.7]}
19... Nd7 {[%clk 0:02:14.6]} 20. Rfd1 {[%clk 0:01:37.4]} 20... a6 {[%clk
0:02:00.3]} 21. Be1 {[%clk 0:00:55.1]} 21... f5 {[%clk 0:01:15.2]} 22. Nd5
{[%clk 0:00:39.8]} 22... Qxd2 {[%clk 0:01:15.7]} 23. Bxd2 {[%clk 0:00:41.7]}
23... Kf7 {[%clk 0:00:54]} 24. Bg5 {[%clk 0:00:37.7]} 24... Nf6 {[%clk 0:00:52]}
25. Nb6 {[%clk 0:00:35.9]} 25... fxe4 {[%clk 0:00:52.3]} 26. Nxa8 {[%clk
0:00:36.5]} 26... Rxa8 {[%clk 0:00:50.1]} 27. c5 {[%clk 0:00:33.3]} 27... d5
{[%clk 0:00:38.7]} 28. Be3 {[%clk 0:00:32.7]} 28... Bd7 {[%clk 0:00:36.5]} 29.
fxe4 {[%clk 0:00:32.3]} 29... Nxe4 {[%clk 0:00:36.8]} 30. Rxd5 {[%clk
0:00:32.4]} 30... Bc6 {[%clk 0:00:38.1]} 31. Rdd1 {[%clk 0:00:32.1]} 31... Nc3
{[%clk 0:00:37.1]} 32. Bc4+ {[%clk 0:00:33.2]} 32... Ke8 {[%clk 0:00:37.9]} 33.
Rf1 {[%clk 0:00:33.7]} 33... Nxa2 {[%clk 0:00:33]} 34. Rcd1 {[%clk 0:00:35]}
34... Bf6 {[%clk 0:00:31.3]} 35. Bd4 {[%clk 0:00:34.6]} 35... Rd8 {[%clk
0:00:22.9]} 36. Bxf6 {[%clk 0:00:35.6]} 36... Rxd1 {[%clk 0:00:23.9]} 37. Rxd1
{[%clk 0:00:37.5]} 37... exf6 {[%clk 0:00:25.8]} 38. Rd6 {[%clk 0:00:31.9]}
38... f5 {[%clk 0:00:25.8]} 39. Re6+ {[%clk 0:00:30.5]} 39... Kd7 {[%clk
0:00:26.1]} 40. Rf6 {[%clk 0:00:31.2]} 40... Nc3 {[%clk 0:00:27.4]} 41. Rf7+
{[%clk 0:00:32.5]} 41... Kd8 {[%clk 0:00:25.7]} 42. Rxh7 {[%clk 0:00:33.8]}
42... a5 {[%clk 0:00:27.4]} 43. Rg7 {[%clk 0:00:31.3]} 43... Ne4 {[%clk
0:00:28.3]} 44. Rxg6 {[%clk 0:00:30.7]} 44... Nxc5 {[%clk 0:00:30.2]} 45. h4
{[%clk 0:00:32.1]} 45... Be8 {[%clk 0:00:30.2]} 46. Rg8 {[%clk 0:00:32.5]} 46...
Ke7 {[%clk 0:00:31.5]} 47. Rg7+ {[%clk 0:00:28.7]} 47... Kf6 {[%clk 0:00:32.4]}
48. Rc7 {[%clk 0:00:29.9]} 48... Bc6 {[%clk 0:00:32.5]} 49. Kh2 {[%clk
0:00:28.5]} 49... Ne4 {[%clk 0:00:32.7]} 50. Kh3 {[%clk 0:00:20.8]} 50... Nf2+
{[%clk 0:00:33.4]} 51. Kg3 {[%clk 0:00:22.2]} 51... Ng4 {[%clk 0:00:32.6]} 52.
Rf7+ {[%clk 0:00:19.3]} 52... Kg6 {[%clk 0:00:33.5]} 53. Rc7 {[%clk 0:00:19]}
53... Ne3 {[%clk 0:00:32.5]} 54. Bf7+ {[%clk 0:00:16]} 54... Kh6 {[%clk
0:00:32.5]} 55. Be6 {[%clk 0:00:15.2]} 55... Bxg2 {[%clk 0:00:24.7]} 56. Kf4
{[%clk 0:00:11.1]} 56... Nd5+ {[%clk 0:00:25]} 57. Bxd5 {[%clk 0:00:12.6]} 57...
Bxd5 {[%clk 0:00:26.8]} 58. Rc5 {[%clk 0:00:14.5]} 58... Bxb3 {[%clk 0:00:27.6]}
59. Rxa5 {[%clk 0:00:14.3]} 59... Bc2 {[%clk 0:00:28.5]} 60. Rc5 {[%clk
0:00:15.1]} 60... Be4 {[%clk 0:00:29.6]} 61. Rc7 {[%clk 0:00:15.9]} 61... Kg6
{[%clk 0:00:30.6]} 62. Rc8 {[%clk 0:00:16.3]} 62... Kh6 {[%clk 0:00:31.7]} 63.
Rh8+ {[%clk 0:00:17.4]} 63... Kg7 {[%clk 0:00:33]} 64. Rb8 {[%clk 0:00:18]}
64... Kg6 {[%clk 0:00:34.4]} 65. Rd8 {[%clk 0:00:19.3]} 65... Kh5 {[%clk
0:00:34.1]} 66. Rh8+ {[%clk 0:00:18.7]} 66... Kg6 {[%clk 0:00:35.5]} 67. h5+
{[%clk 0:00:19.9]} 67... Kg7 {[%clk 0:00:36.9]} 68. Rd8 {[%clk 0:00:19.5]} 68...
Kh6 {[%clk 0:00:38.3]} 69. Rh8+ {[%clk 0:00:18]} 69... Kg7 {[%clk 0:00:39.5]}
70. Rc8 {[%clk 0:00:18.9]} 70... Kh6 {[%clk 0:00:40.9]} 71. Rh8+ {[%clk
0:00:19.7]} 71... Kg7 {[%clk 0:00:42.1]} 1/2-1/2